fUSD/lending_fUSD_20240717
["ID","MTS","AMOUNT","RATE_DAILY","PERIOD"]
[332473668,1721221843358,-150.0,0.00017803,2]
[332473670,1721221843367,-150.0,0.00017803,2]
[332473672,1721221843377,-1058.26,0.00017803,2]
[332473674,1721221843387,-529.36,0.00017803,2]
[332473676,1721221843397,-369.54465039,0.00017925,2]
[332473678,1721221843406,-500.0,0.00018,2]
[332473680,1721221843415,-500.0,0.00018,2]
[332473682,1721221843425,-500.0,0.00018,2]
[332473684,1721221843434,-500.0,0.00018,2]
[332473686,1721221843444,-500.0,0.00018,2]
[332473688,1721221843453,-500.0,0.00018,2]
[332473690,1721221843464,-500.0,0.00018,2]
[332473692,1721221843473,-500.0,0.00018,2]
[332473694,1721221843483,-500.0,0.00018,2]
[332473695,1721221843492,-500.0,0.00018,2]
[332473697,1721221843501,-500.0,0.00018,2]
[332473699,1721221843512,-500.0,0.00018,2]
[332473701,1721221843523,-360.82383241,0.00018,2]
[332473704,1721221843536,-167.70616759,0.00018,2]
[332473706,1721221843546,-500.0,0.00018,2]
[332473708,1721221843557,-256.99484493,0.00018,2]
[332473710,1721221843572,-243.00515507,0.00018,2]
[332473712,1721221843581,-500.0,0.00018,2]
[332473714,1721221843592,-500.0,0.00018,2]
[332473716,1721221843602,-500.0,0.00018,2]
[332473718,1721221843611,-500.0,0.00018,2]
[332473720,1721221843621,-500.0,0.00018,2]
[332473722,1721221843630,-500.0,0.00018,2]
[332473724,1721221843640,-500.0,0.00018,2]
[332473726,1721221843649,-500.0,0.00018,2]
[332473728,1721221843659,-500.0,0.00018,2]
[332473730,1721221843669,-500.0,0.00018,2]
[332473732,1721221843679,-273.58,0.00018,2]
[332473734,1721221843689,-999.99999999,0.00018,3]
[332473736,1721221843698,-500.0,0.00018,2]
[332473738,1721221843708,-500.0,0.00018,2]
[332473740,1721221843719,-296.42801841,0.00018,2]
[332473742,1721221843731,-203.57198159,0.00018,2]
[332473744,1721221843741,-252.60536069,0.00018,2]
[332473746,1721221843752,-247.39463931,0.00018,2]
[332473748,1721221843762,-382.96733823,0.00018,2]
[332473751,1721221843779,-117.03266177,0.00018,2]
[332473753,1721221843788,-500.0,0.00018,2]
[332473755,1721221843798,-500.0,0.00018,2]
[332473757,1721221843808,-331.60149202,0.00018,2]
[332473759,1721221843820,-168.39850798,0.00018,2]
[332473761,1721221843829,-500.0,0.00018,2]
[332473763,1721221843839,-500.0,0.00018,2]
[332473765,1721221843848,-500.0,0.00018,2]
[332473767,1721221843858,-500.0,0.00018,2]
[332473769,1721221843867,-500.0,0.00018,2]
[332473771,1721221843876,-500.0,0.00018,2]
[332473773,1721221843886,-500.0,0.00018,2]
[332473775,1721221843895,-500.0,0.00018,2]
[332473777,1721221843904,-500.0,0.00018,2]
[332473779,1721221843914,-500.0,0.00018,2]
[332473780,1721221843923,-285.05768913,0.00018,2]
[332473783,1721221843935,-214.94231087,0.00018,2]
[332473785,1721221843944,-500.0,0.00018,2]
[332473786,1721221843953,-204.64376782,0.00018,2]
[332473789,1721221843965,-295.35623218,0.00018,2]
[332473791,1721221843974,-500.0,0.00018,2]
[332473793,1721221843983,-500.0,0.00018,2]
[332473794,1721221843993,-500.0,0.00018,2]
[332473796,1721221844002,-500.0,0.00018,2]
[332473798,1721221844011,-500.0,0.00018,2]
[332473800,1721221844021,-500.0,0.00018,2]
[332473802,1721221844030,-500.0,0.00018,2]
[332473804,1721221844039,-500.0,0.00018,2]
[332473806,1721221844049,-500.0,0.00018,2]
[332473808,1721221844058,-500.0,0.00018,2]
[332473810,1721221844067,-500.0,0.00018,2]
[332473812,1721221844076,-500.0,0.00018,2]
[332473814,1721221844086,-500.0,0.00018,2]
[332473816,1721221844095,-500.0,0.00018,2]
[332473818,1721221844105,-500.0,0.00018,2]
[332473820,1721221844114,-500.0,0.00018,2]
[332473822,1721221844123,-500.0,0.00018,2]
[332473824,1721221844133,-500.0,0.00018,2]
[332473826,1721221844142,-500.0,0.00018,2]
[332473828,1721221844151,-500.0,0.00018,2]
[332473830,1721221844160,-316.05,0.00018,2]
[332473832,1721221844170,-500.0,0.00018,2]
[332473834,1721221844179,-500.0,0.00018,2]
[332473836,1721221844188,-500.0,0.00018,2]
[332473838,1721221844197,-500.0,0.00018,2]
[332473839,1721221844206,-500.0,0.00018,2]
[332473841,1721221844216,-500.0,0.00018,2]
[332473843,1721221844225,-500.0,0.00018,2]
[332473845,1721221844235,-500.0,0.00018,2]
[332473847,1721221844244,-500.0,0.00018,2]
[332473849,1721221844254,-500.0,0.00018,2]
[332473851,1721221844263,-500.0,0.00018,2]
[332473853,1721221844273,-500.0,0.00018,2]
[332473855,1721221844282,-500.0,0.00018,2]
[332473857,1721221844292,-500.0,0.00018,2]
[332473859,1721221844302,-500.0,0.00018,2]
[332473861,1721221844312,-500.0,0.00018,2]
[332473863,1721221844322,-500.0,0.00018,2]
[332473865,1721221844333,-500.0,0.00018,2]
[332473867,1721221844344,-500.0,0.00018,2]
[332473869,1721221844353,-500.0,0.00018,2]
[332473871,1721221844362,-500.0,0.00018,2]
[332473873,1721221844372,-500.0,0.00018,2]
[332473875,1721221844381,-500.0,0.00018,2]
[332473877,1721221844390,-500.0,0.00018,2]
[332473879,1721221844401,-500.0,0.00018,2]
[332473881,1721221844410,-500.0,0.00018,2]
[332473883,1721221844419,-500.0,0.00018,2]
[332473885,1721221844429,-500.0,0.00018,2]
[332473887,1721221844438,-500.0,0.00018,2]
[332473889,1721221844448,-500.0,0.00018,2]
[332473891,1721221844458,-500.0,0.00018,2]
[332473893,1721221844468,-500.0,0.00018,2]
[332473895,1721221844478,-500.0,0.00018,2]
[332473897,1721221844487,-467.81,0.00018,2]
[332473899,1721221844497,-500.0,0.00018,2]
[332473901,1721221844506,-500.0,0.00018,2]
[332473903,1721221844519,-500.0,0.00018,2]
[332473905,1721221844529,-500.0,0.00018,2]
[332473907,1721221844539,-500.0,0.00018,2]
[332473909,1721221844550,-500.0,0.00018,2]
[332473911,1721221844561,-500.0,0.00018,2]
[332473913,1721221844572,-500.0,0.00018,2]
[332473915,1721221844582,-500.0,0.00018,2]
[332473917,1721221844593,-500.0,0.00018,2]
[332473919,1721221844602,-468.76,0.00018,2]
[332473921,1721221844612,-500.0,0.00018,2]
[332473923,1721221844621,-155.57001067,0.00018197,2]
[332473925,1721221844631,-450.0,0.0001841,2]
[332473927,1721221844640,-150.0,0.0001841,2]
[332473929,1721221844650,-549.0,0.0001841,2]
[332473930,1721221844659,-2380.0,0.0001841,2]
[332473932,1721221844668,-1990.0,0.0001841,2]
[332473934,1721221844678,-3280.0,0.0001841,2]
[332473936,1721221844687,-150.0,0.0001841,2]
[332473938,1721221844697,-1790.76,0.0001841,2]
[332473940,1721221844707,-1072.0,0.0001841,2]
[332473942,1721221844716,-170.99,0.00018491,2]
[332473944,1721221844726,-293.88982602,0.00018529,2]
[332473946,1721221844737,-153.01927579,0.0001853,2]
[332473948,1721221844747,-708.0,0.00018637,2]
[332473950,1721221844757,-885.49902862,0.000187,7]
[332473952,1721221844767,-2523.161678,0.00018733,2]
[332473954,1721221844777,-1049.6389227,0.0001878,2]
[332473956,1721221844786,-1143.30499719,0.00018787,2]
[332473958,1721221844796,-500.0,0.00018847,2]
[332473960,1721221844805,-200.0,0.00018847,2]
[332473962,1721221844815,-500.0,0.00018848,2]
[332473964,1721221844824,-500.0,0.00018848,2]
[332473966,1721221844834,-200.0,0.00018848,2]
[332473968,1721221844844,-272.66,0.00018849,30]
[332473970,1721221844854,-382.0,0.0001886,2]
[332473972,1721221844864,-166.91631206,0.00018889,2]
[332473974,1721221844874,-593.5,0.00018893,2]
[332473976,1721221844883,-152.64471479,0.00018899,2]
[332473978,1721221844893,-1000.0,0.000189,2]
[332473980,1721221844904,-5000.0,0.000189,2]
[332473982,1721221844913,-300.47974289,0.000189,2]
[332473984,1721221844922,-553.29325832,0.000189,2]
[332473986,1721221844932,-3270.1000499,0.000189,2]
[332473988,1721221844941,-500.0,0.00018905,2]
[332473990,1721221844952,-500.0,0.00018905,2]
[332473992,1721221844961,-500.0,0.00018905,2]
[332473994,1721221844972,-500.0,0.00018905,2]
[332473996,1721221844982,-500.0,0.00018905,2]
[332473998,1721221844991,-371.2888,0.00018905,2]
[332474000,1721221845001,-500.0,0.00018905,2]
[332474002,1721221845010,-500.0,0.00018905,2]
[332474004,1721221845020,-500.0,0.00018905,2]
[332474006,1721221845030,-500.0,0.00018905,2]
[332474008,1721221845039,-500.0,0.00018905,2]
[332474010,1721221845049,-500.0,0.00018905,2]
[332474012,1721221845059,-500.0,0.00018905,2]
[332474014,1721221845068,-500.0,0.00018905,2]
[332474016,1721221845077,-500.0,0.00018905,2]
[332474018,1721221845087,-355.8316,0.00018905,2]
[332474020,1721221845097,-152.64471479,0.00018951,2]
[332474022,1721221845106,-152.38095238,0.00018975,2]
[332474023,1721221845116,-355.89480814,0.00018997,2]
[332474025,1721221845125,-1423.57923256,0.00018997,2]
[332474027,1721221845135,-363.08090993,0.00018999,2]
[332474029,1721221845145,-500.0,0.00018999,2]
[332474031,1721221845155,-500.0,0.00018999,2]
[332474033,1721221845163,-156.30943617,0.00018999,2]
[332474035,1721221845172,-280.6834284,0.00018999,2]
[332474037,1721221845182,-500.0,0.00018999,2]
[332474039,1721221845192,-500.0,0.00018999,2]
[332474041,1721221845201,-500.0,0.00018999,2]
[332474043,1721221845211,-273.25089487,0.00018999,2]
[332474045,1721221845223,-738582.41733117,0.00019,7]
[332474047,1721221845233,-259726.45976106,0.00019,2]
[332474051,1721221845247,-3953.81927455,0.00019,2]
[332474053,1721221845259,-10397.62039256,0.00019,2]
[332474075,1721221845539,-238.47808431,0.00017703,2]
[332474077,1721221845550,-97239.83131255,0.00019,2]
[332474079,1721221845562,-3071.36628471,0.00019,2]
[332474082,1721221845574,-320.35050001,0.00019,2]
[332474085,1721221845602,-690.600222,0.00019,2]
[332474088,1721221845614,-898.31109779,0.00019,2]
[332474090,1721221845625,-1363.871968,0.00019,2]
[332474094,1721221845662,-978.62956,0.00019,2]
[332474107,1721221845776,-673.46432981,0.00019,2]
[332474124,1721221845937,-934.36112104,0.00019,2]
[332474162,1721221969010,35620.80251917,0.00011199,2]
[332474165,1721221991274,14975.36667626,0.00011199,2]
[332474166,1721221998648,6317.42788821,0.00011199,2]
[332474167,1721222002937,7828.41576356,0.00011199,2]
[332474168,1721222005643,376.7278877,0.00011199,2]
[332474169,1721222007362,290.94871821,0.00011199,2]
[332474170,1721222007645,8707.2694009,0.00011199,2]
[332474171,1721222007804,1216.17801083,0.00011199,2]
[332474172,1721222017136,5667.10509746,0.00011199,2]
[332474173,1721222018937,181.39244222,0.00011199,2]
[332474174,1721222020060,414.0867539,0.00011199,2]
[332474175,1721222021098,158.70478125,0.00011199,2]
[332474176,1721222028013,4463.77591731,0.00011199,2]
[332474177,1721222032435,2739.31422748,0.00011199,2]
[332474178,1721222036521,19653.41900944,0.00011199,2]
[332474180,1721222116843,1254.03635287,0.00011199,2]
[332474181,1721222130727,1883.79068713,0.00011199,2]
[332474182,1721222134867,2199.77755191,0.00011199,2]
[332474183,1721222135334,1048.1930682,0.00011199,2]
[332474184,1721222141158,1297.11014396,0.00011199,2]
[332474185,1721222145464,1984.78330199,0.00011199,2]
[332474186,1721222146843,1254.03635287,0.00011199,2]
[332474191,1721222210834,492.55741441,0.00011199,2]
[332474192,1721222213973,617.04418814,0.00011199,2]
[332474194,1721222235195,300.0,0.00011199,2]
[332474198,1721222254924,201.94529503,0.00011199,2]
[332474201,1721222262292,239.55651732,0.00011199,2]
[332474203,1721222278164,265.47446231,0.00011199,2]
[332474205,1721222280721,155.0,0.00011199,2]
[332474206,1721222281614,214.90120291,0.00011199,2]
[332474207,1721222311408,227.39291056,0.00011199,2]
[332474208,1721222316070,156.09391946,0.00011199,2]
[332474211,1721222392816,168.0,0.00011199,2]
[332474212,1721222411202,2142.27228567,0.00011199,2]
[332474213,1721222459517,2008.12017598,0.00011199,2]
[332474214,1721222498766,2000.0,0.00025,120]
[332474215,1721222515105,2000.0,0.00025,120]
[332474216,1721222588421,2017.1,0.00025,120]
[332474227,1721222731772,155.0,0.00011199,2]
[332474239,1721222803432,227.39291056,0.00011199,2]
[332474242,1721222822478,165.4084403,0.00011199,2]
[332474249,1721222885137,2227.80400413,0.0001,2]
[332474299,1721223032381,-553.0,0.00012272,2]
[332474300,1721223032391,-321.60139513,0.000129,2]
[332474301,1721223032402,-167.70597801,0.000129,2]
[332474302,1721223032411,-550.0,0.00013,2]
[332474303,1721223032421,-227.39291056,0.00013472,2]
[332474304,1721223032434,-5644.0583,0.00013474,2]
[332474305,1721223032443,-150.0,0.00013573,2]
[332474306,1721223032452,-1000.0,0.00013573,2]
[332474307,1721223032462,-3919.96342326,0.00013574,2]
[332474308,1721223032474,-4281.9081366,0.00013574,2]
[332474309,1721223032489,-1180.74374656,0.00013574,2]
[332474310,1721223032500,-438.06542074,0.00013574,2]
[332474311,1721223032511,-648.0,0.00013574,2]
[332474312,1721223032522,-3698.13827284,0.00013574,2]
[332474313,1721223032531,-516.73611654,0.00013574,2]
[332474314,1721223032541,-228.64434908,0.00013574,2]
[332474315,1721223032552,-351.56071379,0.00013574,2]
[332474316,1721223032570,-544.0998858,0.00013574,2]
[332474317,1721223032581,-58857.69677966,0.00013574,2]
[332474318,1721223032592,-423.56713528,0.00013574,2]
[332474319,1721223037823,-155.0,0.00012314,2]
[332474320,1721223037833,-946.98299996,0.00013574,2]
[332474321,1721223037845,-13561.76674717,0.00013574,2]
[332474322,1721223037857,-1000.43516749,0.00013574,2]
[332474323,1721223038088,-1632.3621893,0.00013574,2]
[332474324,1721223038101,-4097.32174559,0.00013574,2]
[332474325,1721223038180,-150902.92407726,0.00013574,2]
[332474326,1721223038190,-9708.53205931,0.0001358,2]
[332474327,1721223038201,-371.86,0.00013612,2]
[332474328,1721223038211,-279.92,0.00013759,2]
[332474329,1721223038221,-1513.8970068,0.0001379,2]
[332474330,1721223038231,-469.84,0.0001379,2]
[332474331,1721223038242,-258.33615265,0.00013899,2]
[332474332,1721223038251,-318.7,0.00013975,2]
[332474333,1721223038262,-300.47974289,0.00013984,2]
[332474334,1721223038272,-316.59190017,0.00013984,2]
[332474335,1721223038281,-553.29325832,0.00013984,2]
[332474336,1721223038290,-255.53489735,0.00013984,2]
[332474337,1721223038299,-21846.4107964,0.0001399,2]
[332474338,1721223038309,-1779.47404065,0.00013997,2]
[332474339,1721223038318,-500.0,0.00013999,2]
[332474340,1721223038327,-201.95520887,0.00013999,2]
[332474342,1721223038337,-280.6834284,0.00013999,2]
[332474344,1721223038347,-500.0,0.00013999,2]
[332474345,1721223038356,-500.0,0.00013999,2]
[332474347,1721223038366,-500.0,0.00013999,2]
[332474349,1721223038375,-273.25089487,0.00013999,2]
[332474351,1721223038385,-6699.16051408,0.00013999,2]
[332474353,1721223038394,-532003.44123895,0.00014,2]
[332474355,1721223038406,-95108.43627235,0.00014,2]
[332474359,1721223038418,-845.76155904,0.00014,2]
[332474362,1721223038431,-1178.17123837,0.00014,2]
[332474426,1721223039904,-21148.61220765,0.00014,2]
[332474427,1721223040782,-1051.80630667,0.00014,2]
[332474428,1721223040794,-2443.70908419,0.00014,2]
[332474429,1721223040862,-7054.56,0.00014,2]
[332474430,1721223041007,-733.70081073,0.00014,2]
[332474639,1721223043202,-5176.06421072,0.00014,2]
[332474641,1721223043214,-8783.19619374,0.00014,2]
[332474643,1721223043225,-436.43780332,0.00014,2]
[332474645,1721223043236,-6143.09107559,0.00014,2]
[332474647,1721223043247,-6715.14982374,0.00014,2]
[332474649,1721223043259,-1224.5387,0.00014,2]
[332474652,1721223043270,-1738.02113,0.00014,2]
[332474654,1721223043282,-1310.01098762,0.00014,2]
[332474656,1721223043293,-842.74322516,0.00014,2]
[332474658,1721223043304,-117436.3372042,0.00014,2]
[332474661,1721223043324,-19806.34964143,0.00014,2]
[332474663,1721223043335,-1077728.2259186,0.00014,2]
[332474665,1721223043347,-680.84002523,0.00014,2]
[332474857,1721223045807,-610.98,0.0001399,3]
[332474858,1721223045817,-1627.28202069,0.00014,2]
[332474859,1721223045829,-2136.53960588,0.00014,2]
[332474860,1721223045840,-648.490752,0.00014,2]
[332474861,1721223045851,-638.93908641,0.00014,2]
[332474863,1721223045906,-6483.9318,0.00014,2]
[332474864,1721223045921,-6362.28804746,0.00014,2]
[332474865,1721223045997,-6067.85948417,0.00014,2]
[332474866,1721223046083,-522.23783259,0.00014,2]
[332474869,1721223101074,4467.02483465,0.00011199,2]
[332474870,1721223103608,251.5542779,0.00011199,2]
[332474871,1721223105323,1614.891351,0.00011199,2]
[332474872,1721223109983,9252.14906276,0.00011199,2]
[332474873,1721223110446,227.39291056,0.00011199,2]
[332474874,1721223111708,1329.43311787,0.00011199,2]
[332474875,1721223112652,2835.14404974,0.00011199,2]
[332474876,1721223114156,1055.11995837,0.00011199,2]
[332474877,1721223114900,155.14579047,0.00011199,2]
[332474878,1721223115785,155.17180538,0.00011199,2]
[332474879,1721223116661,888.65243698,0.00011199,2]
[332474880,1721223117747,156.9656383,0.00011199,2]
[332474881,1721223118749,1398.66468537,0.00011199,2]
[332474882,1721223119316,3813.62160316,0.00011199,2]
[332474883,1721223119346,1254.63523304,0.00011199,2]
[332474884,1721223120242,789.45308619,0.00011199,2]
[332474885,1721223120611,1078.59147478,0.00011199,2]
[332474886,1721223121271,155.12603133,0.00011199,2]
[332474887,1721223121766,202.25242539,0.00011199,2]
[332474888,1721223122220,251.63069161,0.00011199,2]
[332474889,1721223123111,3397.72378841,0.00011199,2]
[332474890,1721223123525,616.92384194,0.00011199,2]
[332474891,1721223124650,155.32730712,0.00011199,2]
[332474892,1721223125063,254.40293043,0.00011199,2]
[332474893,1721223127044,1689.91420777,0.00011199,2]
[332474894,1721223127078,35627.7231892,0.00011199,2]
[332474895,1721223127108,6223.59863334,0.00011199,2]
[332474896,1721223127276,155.0,0.00011199,2]
[332474897,1721223128606,158.37298413,0.00011199,2]
[332474898,1721223129362,155.25704126,0.00011199,2]
[332474899,1721223129392,528.93489931,0.00011199,2]
[332474900,1721223129423,235.88604114,0.00011199,2]
[332474901,1721223130040,299.67589193,0.00011199,2]
[332474902,1721223131169,1445.16715792,0.00011199,2]
[332474903,1721223132147,527.74896505,0.00011199,2]
[332474904,1721223132500,309.85169384,0.00011199,2]
[332474905,1721223132765,708.35461394,0.00011199,2]
[332474906,1721223133002,263.88862881,0.00011199,2]
[332474907,1721223133887,173.84703855,0.00011199,2]
[332474908,1721223134598,218.11438004,0.00011199,2]
[332474909,1721223135003,176.39537564,0.00011199,2]
[332474910,1721223135293,479.38527587,0.00011199,2]
[332474911,1721223136878,187.35932368,0.00011199,2]
[332474912,1721223137743,2584.75220922,0.00011199,2]
[332474913,1721223138601,155.43317393,0.00011199,2]
[332474914,1721223140284,156.0,0.00011199,2]
[332474915,1721223140393,202.52407961,0.00011199,2]
[332474916,1721223140423,167.34984429,0.00011199,2]
[332474917,1721223141454,3131.28564666,0.00011199,2]
[332474918,1721223141805,173.47322396,0.00011199,2]
[332474919,1721223142704,407.47074942,0.00011199,2]
[332474920,1721223144214,300.0,0.00011199,2]
[332474921,1721223146847,155.0,0.00011199,2]
[332474922,1721223150031,176.39537564,0.00011199,2]
[332474927,1721223151632,297.70719904,0.00011199,2]
[332474929,1721223154529,358.85703166,0.00011199,2]
[332474930,1721223157319,266.73419059,0.00011199,2]
[332474931,1721223158741,155.0,0.00011199,2]
[332474932,1721223173094,668.53762145,0.00011199,2]
[332474933,1721223185878,1221.83381837,0.00011199,2]
[332474934,1721223188020,213.18588759,0.00011199,2]
[332474935,1721223188131,159.57745731,0.00011199,2]
[332474936,1721223191083,796.63488233,0.00011199,2]
[332474937,1721223194940,20346.87145361,0.00011199,2]
[332474983,1721223421196,1444.59288066,0.00011199,2]
[332474996,1721223535101,155.52012646,0.00011199,2]
[332474998,1721223549872,164.03533166,0.00011199,2]
[332474999,1721223553339,235962.11179038,0.00011199,2]
[332475000,1721223572510,256.37277358,0.00011199,2]
[332475001,1721223574616,205.64995214,0.00011199,2]
[332475003,1721223580449,295.46908239,0.00011199,2]
[332475005,1721223591447,156.0,0.00011199,2]
[332475006,1721223593408,530.56091548,0.00011199,2]
[332475007,1721223599843,156.17031438,0.00011199,2]
[332475008,1721223600527,292.93579283,0.00011199,2]
[332475010,1721223610304,155.0,0.00011199,2]
[332475011,1721223624237,255.32021233,0.00011199,2]
[332475013,1721223636309,5607.32059616,0.00011199,2]
[332475016,1721223656661,227.39291056,0.00011199,2]
[332475017,1721223660803,-5649.77127694,0.00011821,2]
[332475018,1721223660829,-300.0,0.0001192,2]
[332475019,1721223660856,-10764.5215,0.00011921,2]
[332475020,1721223660884,-161.68,0.00011981,2]
[332475022,1721223668718,100433.02722306,0.00011199,2]
[332475023,1721223668742,135529.08456732,0.00011199,2]
[332475033,1721223770544,430.9664964,0.00011199,2]
[332475037,1721223778617,1015.24561731,0.00011199,2]
[332475045,1721223874200,155.81847281,0.00011199,2]
[332475046,1721223877346,74848.96941348,0.00011199,2]
[332475047,1721223877369,154901.27020979,0.00011199,2]
[332475048,1721223908610,374.72,0.00010743,2]
[332475059,1721224023184,155.0,0.00011199,2]
[332475064,1721224078474,155.0,0.00011199,2]
[332475065,1721224082029,224.57081925,0.0001092,2]
[332475077,1721224098377,155.0,0.00011199,2]
[332475081,1721224105630,227.39291056,0.00011199,2]
[332475086,1721224114872,155.0,0.00011199,2]
[332475088,1721224115780,1266.59663734,0.00011199,2]
[332475108,1721224220353,1582.86526938,0.00011199,2]
[332475117,1721224234072,534.33047989,0.00011199,2]
[332475118,1721224234142,-200.0,0.00011702,2]
[332475119,1721224234152,-192.26,0.00011981,2]
[332475120,1721224234162,-454.96,0.00011981,2]
[332475121,1721224234172,-301.2901,0.00012202,2]
[332475122,1721224234181,-3464.26545467,0.00012273,2]
[332475123,1721224234191,-291.94916451,0.00012273,2]
[332475124,1721224234200,-217.04054526,0.00012273,2]
[332475125,1721224234210,-394.57,0.00012413,2]
[332475126,1721224234220,-199.82,0.00012478,2]
[332475127,1721224234230,-726.27,0.00012516,2]
[332475128,1721224234240,-250.0,0.00012517,2]
[332475129,1721224234250,-200.0,0.00012562,2]
[332475130,1721224234259,-500.0,0.00012576,2]
[332475131,1721224234269,-250.0,0.00012621,2]
[332475132,1721224234278,-150.0,0.00012639,2]
[332475133,1721224234287,-16268.90628589,0.0001264,2]
[332475134,1721224234305,-6107.10310454,0.0001264,2]
[332475135,1721224234319,-1294.6433,0.0001264,2]
[332475136,1721224234330,-229.34730957,0.0001264,2]
[332475137,1721224234340,-500.0,0.0001264,2]
[332475138,1721224234351,-178.4,0.00012732,2]
[332475139,1721224234361,-188.85,0.00012977,2]
[332475140,1721224234371,-499.99,0.00012982,2]
[332475141,1721224234381,-150.99,0.00012982,2]
[332475142,1721224234393,-40.11590737,0.00012982,2]
[332475143,1721224234406,-484.55762474,0.00012982,2]
[332475144,1721224234427,-31.12646789,0.00012982,2]
[332475146,1721224234436,-550.0,0.00013,2]
[332475148,1721224234447,-500.0,0.00013,2]
[332475150,1721224234456,-374.72,0.00013007,2]
[332475152,1721224234467,-300.0,0.00013022,2]
[332475153,1721224234477,-1477.05353211,0.00013128,2]
[332475154,1721224234489,-3916.38968968,0.00013128,2]
[332475155,1721224234499,-454.96,0.00013479,2]
[332475156,1721224234508,-500.0,0.000135,2]
[332475157,1721224234518,-1264.75978188,0.00013516,2]
[332475158,1721224234527,-155.0,0.00013543,2]
[332475159,1721224234537,-227.39291056,0.00013543,2]
[332475160,1721224234547,-155.0,0.00013543,2]
[332475161,1721224234556,-278.31377295,0.00013563,2]
[332475162,1721224234566,-742.2776652,0.00013574,2]
[332475163,1721224234575,-178.7,0.00013699,2]
[332475164,1721224234585,-532.35,0.00013699,2]
[332475165,1721224234594,-250.0,0.00013699,2]
[332475166,1721224234604,-200.0,0.00013699,2]
[332475167,1721224234613,-2080.917,0.00013708,2]
[332475168,1721224234623,-419.00943635,0.00013736,2]
[332475169,1721224234633,-202.63259192,0.00013758,2]
[332475170,1721224234644,-500.0,0.000138,5]
[332475171,1721224234653,-173.47,0.00013842,2]
[332475172,1721224234663,-519.32016709,0.00013849,2]
[332475173,1721224234672,-9511.01401381,0.0001385,2]
[332475174,1721224234682,-2409.0,0.0001386,2]
[332475175,1721224234691,-317.65,0.000139,2]
[332475176,1721224234701,-186.30912339,0.000139,2]
[332475177,1721224234710,-447.7161,0.000139,2]
[332475178,1721224234720,-202.7635,0.000139,2]
[332475179,1721224234730,-1000.0,0.000139,5]
[332475180,1721224234739,-311.09957736,0.00013954,2]
[332475181,1721224234749,-506.47171051,0.00013954,2]
[332475182,1721224234759,-2109.14711739,0.00013954,2]
[332475183,1721224234769,-194.54721008,0.00013974,2]
[332475184,1721224234779,-155.0,0.00013989,2]
[332475185,1721224234789,-276.34359382,0.00013989,2]
[332475186,1721224234799,-216.45576739,0.0001399,2]
[332475187,1721224234808,-155.41610123,0.00013999,2]
[332475188,1721224234818,-169.8426272,0.00013999,2]
[332475189,1721224234827,-511681.02269144,0.00014,2]
[332475194,1721224238607,-584.18504825,0.00013543,2]
[332475195,1721224238617,-667.67223605,0.00013989,2]
[332475196,1721224238634,-56.14509095,0.00013989,2]
[332475197,1721224238645,-129905.85490908,0.00014,2]
[332475198,1721224238656,-129678.0,0.00014,2]
[332475199,1721224238677,-1010.29713101,0.00014,2]
[332475200,1721224238696,-272000.53508888,0.00014,2]